[Event "29th Bosnjaci Open 2025"]
[Site "Bosnjaci"]
[Date "2025.01.03"]
[Round "1.1"]
[White "Medvesek, Janez"]
[Black "Saric, Ante"]
[Result "0-1"]
[ECO "D35"]
[WhiteElo "1940"]
[BlackElo "2483"]
[Annotator "TA"]
[PlyCount "52"]
[EventDate "2025.01.04"]
[EventType "swiss"]
[EventCountry "CRO"]
[SourceTitle "playchess.com"]
[Source "ChessBase"]
[SourceQuality "1"]
[TimeControl "5400+30"]

{[%evp 11,52,-5,0,-61,-48,-50,-63,-61,-46,-71,-60,-122,-117,-128,-72,-104,-107,-107,-100,-128,-137,-132,-119,-157,-116,-156,-135,-133,-127,-189,-162,-160,-159,-168,-160,-178,-181,-166,-182,-272,-269,-272,-277]} 1. d4 {[%emt 0:00:07]} Nf6 {[%emt 0:09:23]} 2. c4 {[%emt 0:00:10]} e6 {[%emt 0:00:04]} 3. Nf3 {[%emt 0:00:37]} d5 {[%emt 0:00:40]} 4. cxd5 {[%emt 0:00:56]} exd5 {[%emt 0:00:05]} 5. Nc3 {[%emt 0:00:55]} c6 {[%emt 0:00:04]} 6. Qc2 {[%emt 0:00:16]} g6 {[%emt 0:01:47]} 7. e4 {[%emt 0:05:57]} ({White should try} 7. Bg5 $11) 7... dxe4 $15 {[%emt 0:07:39]} 8. Nxe4 {[%emt 0:00:08]} Qe7 {[%emt 0:06:09]} 9. Nfd2 {[%emt 0:01:32] Black is slightly better.} Bg7 {[%emt 0:02:21] White must now prevent ...0-0.} 10. Bc4 {[%emt 0:09:47]} Bf5 {[%emt 0:11:00][%cal Rf6e4]} 11. f3 {[%emt 0:00:55]} ({Better is} 11. O-O $1 $15) 11... O-O {[%emt 0:00:38]} 12. O-O {[%emt 0:03:57]} Nxe4 {[%emt 0:00:58]} (12... Nbd7 $142 13. Kh1 Nb6) 13. fxe4 {[%emt 0:01:18]} Bxd4+ {[%emt 0:00:18]} 14. Kh1 {[%emt 0:00:07]} Be6 {[%emt 0:01:11]} 15. Bd3 {[%emt 0:01:24]} Nd7 {[%emt 0:01:44]} 16. Nf3 {[%emt 0:02:35]} Bg7 {[%emt 0:01:03]} 17. Bf4 {[%emt 0:00:35]} Rad8 {[%emt 0:05:00]} 18. Ng5 {[%emt 0:01:25]} Ne5 {[%emt 0:02:10]} 19. Nxe6 {[%emt 0:02:02]} Qxe6 {[%emt 0:01:11]} 20. Bxe5 {[%emt 0:00:38]} (20. Be2 $17) 20... Qxe5 {[%emt 0:06:11]} 21. Rab1 {[%emt 0:06:13] White is weak on the dark squares} Rd4 $36 {[%emt 0:01:08][%mdl 2048] Keeping White busy. Black is more active.} 22. Rf3 {[%emt 0:01:31]} Qe6 {[%emt 0:02:55]} 23. b3 {[%emt 0:00:39]} b5 {[%emt 0:00:05]} 24. Rd1 {[%emt 0:06:59]} Rfd8 {[%emt 0:00:54][%cal Oe6e4] Threatens to win with ...Qxe4!} 25. Be2 {[%emt 0:05:11]} (25. Rff1 {is a better defense.}) 25... Rxd1+ $19 {[%emt 0:00:34]} (25... Qxe4 $2 {is the wrong capture.} 26. Qxe4 Rxd1+ 27. Rf1 $18) 26. Bxd1 {[%emt 0:00:07] [#]} Qxe4 $3 {[%emt 0:00:33][%mdl 512] Weighted Error Value: White=0.28 (precise) /Black=0.11 (very precise) .  Mistake:       	White=3     	Black=1      Inaccurate:     	White=3     	---        OK:         	White=4     	Black=5      Best:        	White=2     	Black=2} 0-1

[Event "29th Bosnjaci Open 2025"]
[Site "Bosnjaci"]
[Date "2025.01.03"]
[Round "1.2"]
[White "Culum, Sanjin"]
[Black "Grubisic, Ivica"]
[Result "1-0"]
[ECO "D78"]
[WhiteElo "2446"]
[BlackElo "1933"]
[Annotator "TA"]
[PlyCount "49"]
[EventDate "2025.01.04"]
[EventType "swiss"]
[EventCountry "CRO"]
[SourceTitle "playchess.com"]
[Source "ChessBase"]
[SourceQuality "1"]
[TimeControl "5400+30"]

{[%evp 13,49,25,23,6,35,32,49,61,43,9,92,92,107,91,85,92,89,81,94,94,138,127,185,170,168,154,156,151,150,140,119,123,133,108,271,265,412,415]} 1. d4 {[%emt 0:00:34]} d5 {[%emt 0:00:08]} 2. Nf3 {[%emt 0:00:28]} Nf6 {[%emt 0:00:08]} 3. c4 {[%emt 0:00:26]} e6 {[%emt 0:00:16]} 4. g3 {[%emt 0:00:05]} g6 {[%emt 0:00:40]} 5. Bg2 {[%emt 0:01:38]} Bg7 {[%emt 0:00:10]} 6. O-O {[%emt 0:01:37]} O-O {[%emt 0:00:08]} 7. Nc3 {[%emt 0:01:48]} c6 {[%emt 0:00:34]} 8. Bf4 {[%emt 0:11:44]} Nbd7 {[%emt 0:01:05]} 9. c5 {[%emt 0:05:07]} Re8 {[%emt 0:04:51]} 10. b4 {[%emt 0:08:40] White is slightly better.} Nh5 {[%emt 0:00:49]} 11. Bg5 {[%emt 0:10:40]} Qc7 {[%emt 0:06:43]} (11... f6 $11 {remains equal.} 12. Bd2 a5) 12. e4 $16 {[%emt 0:01:18]} b6 {[%emt 0:02:32]} 13. e5 {[%emt 0:05:38]} f6 {[%emt 0:00:24]} 14. exf6 {[%emt 0:02:12]} Bxf6 {[%emt 0:01:17]} 15. Re1 {[%emt 0:02:54]} bxc5 {[%emt 0:01:03]} 16. bxc5 {[%emt 0:00:40]} Bg7 {[%emt 0:03:48]} 17. Qd2 {[%emt 0:04:41]} Qa5 {[%emt 0:01:45]} (17... Ba6 $16 {was necessary.} 18. Rad1 Bf6) 18. g4 {[%emt 0:03:30]} Nhf6 {[%emt 0:00:32] [#]} 19. Nxd5 $1 {[%emt 0:01:12][%mdl 512]} Qxd2 {[%emt 0:01:16]} 20. Nxf6+ {[%emt 0:00:05]} Nxf6 {[%emt 0:01:29]} 21. Nxd2 {[%emt 0:03:41]} Nd5 {[%emt 0:00:17]} 22. Nf3 {[%emt 0:01:21]} Ba6 {[%emt 0:00:58]} 23. Ne5 {[%emt 0:01:49]} Rac8 {[%emt 0:00:38] [#]} (23... Bxe5 $16 24. Rxe5 Bc4) 24. Nxc6 $1 $18 {[%emt 0:01:24]} Rxc6 {[%emt 0:01:46]} (24... Kf8 {was worth a try.}) 25. Bxd5 {[%emt 0:00:19] Weighted Error Value: White=0.08 (flawless) /Black=0.46.  Loses game:     	---       	Black=1      Mistake:       	---       	Black=3      Inaccurate:     	White=1     	Black=2      OK:         	White=4     	Black=5      Best:        	White=3     	Black=1      Strong:       	White=1     	---} 1-0

[Event "29th Bosnjaci Open 2025"]
[Site "Bosnjaci"]
[Date "2025.01.03"]
[Round "1.3"]
[White "Matanovic, Zlatko"]
[Black "Pap, Misa"]
[Result "0-1"]
[ECO "E12"]
[WhiteElo "1931"]
[BlackElo "2436"]
[Annotator "TA"]
[PlyCount "90"]
[EventDate "2025.01.04"]
[EventType "swiss"]
[EventCountry "CRO"]
[SourceTitle "playchess.com"]
[Source "ChessBase"]
[SourceQuality "1"]
[TimeControl "5400+30"]

{[%evp 10,90,44,0,8,0,0,-5,5,0,0,-17,-8,-12,19,-45,-22,-58,-33,-65,-64,-141,-133,-138,-131,-136,-129,-155,-150,-142,-145,-152,-151,-163,-150,-173,-135,-157,-133,-195,-197,-160,-155,-189,-186,-179,-191,-217,-166,-166,-136,-143,-138,-156,-147,-160,-156,-163,-157,-386,-400,-375,-391,-805,-725,-749,-750,-770,-770,-816,-806,-814,-785,-6731,-5930,-29985,-29986,-29985,-29986,-29987,-29988,-29990,-29988]} 1. d4 {[%emt 0:00:08]} Nf6 {[%emt 0:00:07]} 2. Nf3 {[%emt 0:01:28]} b6 {[%emt 0:01:14]} 3. c4 {[%emt 0:01:03]} e6 {[%emt 0:00:21]} 4. Nc3 {[%emt 0:00:22]} Bb7 {[%emt 0:01:30]} 5. a3 {[%emt 0:03:31]} Be7 {[%emt 0:00:49]} 6. e3 {[%emt 0:00:31]} O-O {[%emt 0:01:26]} 7. Bd3 {[%emt 0:00:24]} d5 {[%emt 0:00:18]} 8. O-O {[%emt 0:01:22]} Nbd7 {[%emt 0:01:07]} 9. cxd5 {[%emt 0:01:10]} exd5 {[%emt 0:00:05]} 10. Bd2 {[%emt 0:01:25]} c5 {[%emt 0:00:05]} 11. Rc1 {[%emt 0:00:14]} Re8 {[%emt 0:04:02]} 12. Ne2 {[%emt 0:03:47]} ({White should try} 12. Ne5 $1 $11) 12... Ne4 {[%emt 0:02:00]} 13. Ng3 {[%emt 0:02:19]} a6 {[%emt 0:00:32]} 14. Nf5 {[%emt 0:01:31]} Bf8 {[%emt 0:00:15]} 15. Bc3 {[%emt 0:01:53]} (15. dxc5 $15 bxc5 16. Ng3) 15... Nxc3 $17 {[%emt 0:01:56]} 16. Rxc3 {[%emt 0:00:45]} c4 {[%emt 0:00:11]} 17. Bb1 {[%emt 0:00:16]} b5 {[%emt 0:00:08]} 18. h4 {[%emt 0:04:54]} g6 {[%emt 0:02:04]} 19. Ng3 {[%emt 0:03:48]} a5 {[%emt 0:00:18]} 20. Ng5 {[%emt 0:02:56]} b4 {[%emt 0:08:03]} 21. axb4 {[%emt 0:05:31]} axb4 {[%emt 0:00:05]} 22. Rc2 {[%emt 0:00:23]} Bh6 {[%emt 0:05:18]} 23. Nf3 {[%emt 0:03:35]} Qc7 {[%emt 0:07:38][%cal Oh6e3]} 24. h5 {[%emt 0:02:10] [#]} (24. Ne2 $17) 24... Bxe3 $1 $19 {[%emt 0:01:26][%mdl 512]} 25. hxg6 {[%emt 0:04:56]} (25. fxe3 Qxg3) 25... fxg6 {[%emt 0:00:51]} ({Worse is} 25... Qxg3 26. gxf7+ Kxf7 27. fxe3 $16) 26. Re2 {[%emt 0:02:55][%cal Of1e1]} Bf4 {[%emt 0:01:19]} 27. Rfe1 {[%emt 0:00:41]} Rxe2 {[%emt 0:01:43]} 28. Qxe2 {[%emt 0:00:12] Hoping for Qe6+.} Qd6 {[%emt 0:02:08][%cal Od7f6]} 29. Nf1 {[%emt 0:08:28]} Rf8 {[%emt 0:05:11]} 30. g3 {[%emt 0:10:44]} Bh6 {[%emt 0:00:06]} 31. N1h2 {[%emt 0:00:38]} Nf6 {[%emt 0:03:02] Black is more active.} 32. Ne5 {[%emt 0:04:21]} Qb6 {[%emt 0:00:21]} 33. Nhg4 {[%emt 0:01:47]} Nxg4 {[%emt 0:02:01]} 34. Nd7 $2 {[%emt 0:03:59]} (34. Nxg4 $17 Bg7 35. Qd2) 34... Qxd4 {[%emt 0:00:50]} 35. Nxf8 {[%emt 0:00:56]} Bxf8 {[%emt 0:00:29]} 36. Qf3 $2 {[%emt 0:05:29] Dodges Nf6} (36. Rd1 Qxf2+ 37. Qxf2 Nxf2 38. Kxf2) 36... Nf6 {[%emt 0:01:46]} 37. Qe2 {[%emt 0:04:49]} Bc8 {[%emt 0:00:45]} 38. Kg2 {[%emt 0:01:27]} b3 {[%emt 0:00:44]} 39. f3 {[%emt 0:01:26]} Qb6 {[%emt 0:00:20]} 40. Qe5 {[%emt 0:00:52]} Bb4 {[%emt 0:00:22]} 41. Bxg6 {[%emt 0:00:57]} Bxe1 {[%emt 0:00:25]} 42. Bxh7+ {[%emt 0:01:18]} Kxh7 {[%emt 0:00:07]} 43. Qxe1 {[%emt 0:00:23]} Qd4 {[%emt 0:00:10]} 44. Qe7+ {[%emt 0:00:24]} Kg6 {[%emt 0:00:07]} 45. g4 {[%emt 0:00:29] [#]} Bxg4 $1 {[%emt 0:00:16]} 0-1

[Event "29th Bosnjaci Open 2025"]
[Site "Bosnjaci"]
[Date "2025.01.03"]
[Round "1.4"]
[White "Zaja, Ivan"]
[Black "Slobodjanac, Sinisa"]
[Result "1-0"]
[ECO "D85"]
[WhiteElo "2418"]
[BlackElo "1930"]
[Annotator "TA"]
[PlyCount "91"]
[EventDate "2025.01.04"]
[EventType "swiss"]
[EventCountry "CRO"]
[SourceTitle "playchess.com"]
[Source "ChessBase"]
[SourceQuality "1"]
[TimeControl "5400+30"]

{[%evp 14,91,9,15,24,20,52,46,60,28,50,8,70,58,84,58,60,62,67,67,67,16,57,17,86,16,24,20,26,0,0,-6,-12,-73,-8,-8,-16,-17,4,0,0,0,13,4,79,18,24,26,19,19,59,29,114,64,216,184,179,115,153,116,141,108,260,238,531,454,575,562,573,554,697,717,440,124,614,614,671,597,2151,1985]} 1. d4 {[%emt 0:00:06]} Nf6 {[%emt 0:00:06]} 2. c4 {[%emt 0:00:04]} g6 {[%emt 0:00:03]} 3. Nc3 {[%emt 0:00:04]} d5 {[%emt 0:00:04]} 4. cxd5 {[%emt 0:00:44]} Nxd5 {[%emt 0:00:05]} 5. Bd2 {[%emt 0:00:11]} Bg7 {[%emt 0:00:17]} 6. e4 {[%emt 0:00:06]} Nxc3 {[%emt 0:00:19]} 7. Bxc3 {[%emt 0:00:09]} O-O {[%emt 0:03:21]} 8. Qd2 {[%emt 0:01:09]} c5 {[%emt 0:00:55]} 9. d5 {[%emt 0:01:05]} Nd7 {[%emt 0:02:36]} 10. Bxg7 {[%emt 0:04:42]} Kxg7 {[%emt 0:00:06] White is slightly better.} 11. Ne2 {[%emt 0:02:00]} b5 {[%emt 0:11:07]} 12. Nf4 {[%emt 0:01:43]} b4 {[%emt 0:02:03] Wards off Qc3+} (12... Qb6 $11) 13. h4 {[%emt 0:01:10][%cal Bh2h4,Bh4h5][%mdl 32] White is more active.} Qc7 {[%emt 0:02:37]} 14. h5 {[%emt 0:04:19]} g5 {[%emt 0:07:24]} 15. Nd3 {[%emt 0:07:48]} h6 {[%emt 0:08:48]} 16. Rc1 {[%emt 0:00:47]} a5 {[%emt 0:01:16]} 17. f4 {[%emt 0:06:51]} (17. Qe3 $14) 17... Ba6 {[%emt 0:02:36]} 18. fxg5 {[%emt 0:04:29] next Qe3 is good for White.} (18. g3 {simplifies} Kh7 19. Bh3 e6 20. Qe3) 18... Qg3+ {[%emt 0:00:28]} (18... Bxd3 $1 $11 19. gxh6+ (19. Bxd3 Qg3+ 20. Kd1 hxg5 $11) (19. Qxd3 Qf4 $11) 19... Kh8 20. Bxd3 (20. Qxd3 Qf4 $11) 20... Rg8) 19. Nf2 {[%emt 0:08:25]} ({Better is} 19. Qf2 $1 $16 Qxf2+ (19... Qxg5 20. Rh3 $16) 20. Kxf2) 19... Qxg5 $11 {[%emt 0:25:40]} 20. Qxg5+ {[%emt 0:06:22]} hxg5 {[%emt 0:00:08]} 21. Bxa6 {[%emt 0:00:38]} Rxa6 {[%emt 0:00:09]} 22. Nd3 {[%emt 0:00:05]} Rc8 {[%emt 0:03:00]} 23. Rc4 {[%emt 0:04:05]} (23. b3 $11) 23... Rd6 {[%emt 0:01:25]} (23... e6 $1 $17 {...exd5 is the strong threat.} 24. h6+ Kh8) 24. Ke2 {[%emt 0:04:23]} e6 {[%emt 0:00:47]} 25. dxe6 {[%emt 0:02:38]} Rxd3 {[%emt 0:04:19]} 26. exd7 {[%emt 0:00:25]} (26. h6+ Kh7 27. exd7 (27. Kxd3 $2 Ne5+ 28. Ke2 Nxc4 $19) 27... Rxd7 $15) 26... Rxd7 {[%emt 0:00:07][%mdl 4096] Endgame. KRR-KRR} 27. Rhc1 {[%emt 0:00:40]} Re8 {[%emt 0:08:21]} 28. g4 {[%emt 0:01:33][%cal Oc1c2]} Re5 {[%emt 0:02:58] [#]} (28... Re6 $11 {keeps the balance.}) 29. Rf1 {[%emt 0:01:42]} (29. Ke3 $1 $16) 29... Rde7 {[%emt 0:02:21]} 30. Kd3 {[%emt 0:02:27]} Rd7+ {[%emt 0:01:06]} 31. Ke3 {[%emt 0:03:49]} Rde7 {[%emt 0:01:00]} 32. Rf2 {[%emt 0:09:00]} Rd7 {[%emt 0:03:54]} (32... R7e6 $11 {remains equal.}) 33. Rf5 {[%emt 0:01:13]} (33. Rd2 $16 Rxd2 34. Kxd2) 33... Rde7 {[%emt 0:00:49] [#]} (33... Rxf5 $14 34. gxf5 Rc7) 34. Rxe5 $1 $18 {[%emt 0:00:42]} Rxe5 {[%emt 0:00:37] KR-KR} 35. Rc1 {[%emt 0:00:29]} ({White should play} 35. b3 $18) 35... a4 $16 {[%emt 0:01:05]} 36. a3 {[%emt 0:03:21]} Kf8 {[%emt 0:03:29]} 37. Rc4 {[%emt 0:00:22]} bxa3 {[%emt 0:00:34]} (37... Kg7 $16) 38. bxa3 $18 {[%emt 0:00:04][%cal Bb2a3,Ba3a4,Ba4a5,Ba5a6][%mdl 32]} Ke7 $2 {[%emt 0:01:07]} (38... Re6 39. Rxc5 Rb6 40. Rxg5 Rb3+ 41. Kf4 Rxa3) 39. Rxa4 {[%emt 0:00:10] And now h6 would win.} Re6 {[%emt 0:00:13]} 40. Ra7+ {[%emt 0:02:52]} Kf6 {[%emt 0:00:14]} 41. a4 {[%emt 0:01:50]} Rc6 {[%emt 0:00:31]} 42. a5 {[%emt 0:00:37]} c4 {[%emt 0:00:08][%cal Bc5c4,Bc4c3][%mdl 32]} 43. Rb7 $2 {[%emt 0:00:40]} ({But not} 43. Kd4 $2 c3 44. Kd5 c2 45. Kxc6 (45. e5+ $2 Kg7 $19) 45... c1=Q+ (45... c1=B $2 {perishes.} 46. a6 $18) 46. Kd7 Qc4 $19) (43. Kd2 $18 {and White stays clearly on top.}) 43... Kg7 $2 {[%emt 0:00:33][%mdl 8192]} (43... Rc5 $16) 44. Kd2 {[%emt 0:01:52] White is clearly winning.} c3+ {[%emt 0:00:53]} 45. Kc2 {[%emt 0:00:06]} Rc4 {[%emt 0:00:04]} 46. a6 {[%emt 0:02:00] Weighted Error Value: White=0.30/Black=0.58.  Mistake:       	White=6     	Black=8      Inaccurate:     	White=6     	Black=3      OK:         	White=12    	Black=8      Best:        	White=3     	Black=1      Strong:       	White=1     	---} 1-0

[Event "29th Bosnjaci Open 2025"]
[Site "Bosnjaci"]
[Date "2025.01.03"]
[Round "1.5"]
[White "Pirvulescu, Adrian"]
[Black "Fercec, Nenad"]
[Result "0-1"]
[ECO "B80"]
[WhiteElo "1919"]
[BlackElo "2382"]
[Annotator "TA"]
[PlyCount "78"]
[EventDate "2025.01.04"]
[EventType "swiss"]
[EventCountry "CRO"]
[SourceTitle "playchess.com"]
[Source "ChessBase"]
[SourceQuality "1"]
[TimeControl "5400+30"]

{[%evp 11,78,18,21,19,29,20,25,35,41,37,39,-101,-95,-91,-90,-97,-74,-139,-131,-150,-118,-304,-306,-297,-304,-293,-223,-289,-280,-285,-259,-565,-545,-705,-784,-765,-765,-910,-677,-614,-259,-232,-237,-764,-442,-431,-365,-378,-385,-373,-372,-344,-322,-1330,-391,-29968,-745,-622,-330,-5023,-897,-29992,-29992,-29992,-29988,-29988,-29988,-29989,-29990]} 1. e4 {[%emt 0:00:04]} c5 {[%emt 0:00:08]} 2. Nf3 {[%emt 0:00:05]} d6 {[%emt 0:00:05]} 3. d4 {[%emt 0:00:05]} cxd4 {[%emt 0:00:08]} 4. Nxd4 {[%emt 0:00:07]} Nf6 {[%emt 0:00:09]} 5. Nc3 {[%emt 0:00:09]} a6 {[%emt 0:00:13]} 6. Be3 {[%emt 0:00:11]} e6 {[%emt 0:00:10]} 7. a3 {[%emt 0:00:10]} b5 {[%emt 0:00:19]} 8. g4 {[%emt 0:00:06][%cal Bg2g4,Bg4g5][%mdl 32]} Bb7 {[%emt 0:00:13]} 9. Bg2 {[%emt 0:00:07] White has an edge.} h5 {[%emt 0:02:12]} 10. g5 {[%emt 0:09:32]} Ng4 {[%emt 0:00:07]} 11. h4 {[%emt 0:00:37]} (11. g6 $14 {keeps the upper hand.}) 11... Nxe3 $17 {[%emt 0:00:11]} 12. fxe3 {[%emt 0:00:05][%cal Og5g6]} g6 {[%emt 0:00:30]} 13. O-O {[%emt 0:03:15]} Bg7 {[%emt 0:01:38] Inhibits e5.} 14. Qd2 {[%emt 0:00:46]} (14. e5 $142 Bxg2 (14... dxe5 $2 15. Nxe6 Qxd1 16. Nxg7+ Kf8 17. Ne6+ Ke7 18. Rfxd1 $18) 15. Kxg2) 14... Nd7 {[%emt 0:01:49]} 15. Rad1 {[%emt 0:12:31][%cal Od4e6]} Ne5 {[%emt 0:00:27]} 16. Nf5 $2 {[%emt 0:27:57]} gxf5 $19 {[%emt 0:08:23]} (16... exf5 17. exf5 Bxg2 18. Qxg2 $19) 17. exf5 {[%emt 0:00:25]} Bxg2 {[%emt 0:00:36]} 18. Qxg2 {[%emt 0:00:37]} exf5 {[%emt 0:01:42] Hoping for ...Rc8.} 19. Rxd6 {[%emt 0:01:45]} Qxd6 {[%emt 0:00:52]} 20. Qxa8+ {[%emt 0:00:07]} Qd8 {[%emt 0:00:21]} 21. Qxa6 {[%emt 0:02:46]} (21. Qxd8+ {was the crucial defense.} Kxd8 22. Rxf5) 21... O-O {[%emt 0:00:07]} 22. Qxb5 {[%emt 0:02:55]} Ng4 {[%emt 0:00:10] [#] Strongly threatening ...Bxc3.} 23. Nd5 {[%emt 0:15:55]} Qd6 {[%emt 0:00:30][%csl Gg4][%cal Rd6h2]} 24. Rxf5 {[%emt 0:02:18]} Qg3+ {[%emt 0:00:54]} 25. Kf1 {[%emt 0:00:07]} Nxe3+ {[%emt 0:08:44]} (25... Rd8 $142 {[%cal Od8d5] ( -> ...Rxd5!)} 26. Ke2 Qg2+ (26... Qxh4 $2 27. Qa5 $19) 27. Kd3 Ne5+ 28. Rxe5 Bxe5 (28... Qf1+ $2 29. Ke4 $19)) 26. Nxe3 {[%emt 0:01:29]} Qxe3 {[%emt 0:00:05]} 27. Qb3 $2 {[%emt 0:05:57]} (27. Qd3 Qe7 (27... Qxd3+ $2 28. cxd3 Rd8 29. a4 $19) 28. Rf2) 27... Qe4 {[%emt 0:01:10]} 28. Qd5 {[%emt 0:06:11]} Qxc2 {[%emt 0:02:13][%cal Og7d4] ...Bd4! would now be deadly.} 29. Rf2 {[%emt 0:07:23]} Qg6 {[%emt 0:00:26]} 30. b4 {[%emt 0:01:17]} Re8 {[%emt 0:00:21]} 31. b5 {[%emt 0:00:21]} Re5 {[%emt 0:00:20]} 32. Qa8+ {[%emt 0:00:39]} (32. Qc4) 32... Kh7 $2 {[%emt 0:00:11]} (32... Bf8 {Threatens to win with ...Qd3+.} 33. Kg2 Qe6 (33... Rxb5 $2 34. Qf3 $19)) 33. a4 $2 {[%emt 0:00:29] [#]} (33. Qf3 $19) 33... Qe6 {[%emt 0:01:31]} (33... Qd3+ $142 34. Kg2 Re4 35. Qxe4+ Qxe4+ 36. Kf1 Qxa4 37. b6 Qd1+ (37... Qxh4 $2 38. g6+ Kxg6 39. Rc2 $19) 38. Kg2 Qg4+ 39. Kf1 Qxh4 40. Ke2 Qxg5 41. Rf3 Qb5+ (41... Qg2+ 42. Rf2 $19) 42. Ke1 Qxb6 43. Rd3 Qc6 44. Re3 Bc3+ 45. Kd1 Qd5+ 46. Ke2 Qg2+ 47. Kd3 Qd2+ 48. Ke4 Qd4+ 49. Kf3 Qg4+ 50. Kf2 Bd4 51. Ke1 Bxe3 (51... Qg1+ {leads to mate.} 52. Kd2 Qxe3+ 53. Kc2 Qc3+ 54. Kd1 Qd3+ 55. Kc1 Qe2 56. Kb1 Qb2#) 52. Kf1 Qf3+ 53. Ke1 Qf2+ 54. Kd1 Qd2#) 34. Qf3 {[%emt 0:00:19]} Qc4+ {[%emt 0:00:34]} 35. Kg2 $2 {[%emt 0:00:41]} (35. Re2) 35... Qxh4 {[%emt 0:00:16]} ({And not} 35... Qxa4 36. Qxh5+ Kg8 37. Qxf7+ Kh8 38. Qh5+ Kg8 39. Qf7+ Kh7 40. Qh5+ Kg8 41. Qf7+ $11) 36. Qxf7 {[%emt 0:00:31]} Rxg5+ {[%emt 0:00:12] Black mates.} 37. Kf1 {[%emt 0:00:18]} Qxa4 {[%emt 0:00:50][%cal Ra4d1]} 38. Qf3 {[%emt 0:00:42]} Qxb5+ {[%emt 0:00:26]} ({Not} 38... Rxb5 39. Qd3+ Kh6 40. Qd6+ Kh7 41. Qd3+ Kh6 42. Qd6+ Kh7 43. Qd3+ $11) 39. Qe2 {[%emt 0:00:27]} Qb1+ {[%emt 0:00:05] White did not feel at home in the position after the opening.   Weighted Error Value: White=1.22/Black=0.95.  Loses game:     	White=1     	---        Mistake:       	White=6     	Black=1      Inaccurate:     	White=1     	Black=1      OK:         	White=6     	Black=9      Best:        	White=4     	Black=3} 0-1

[Event "29th Bosnjaci Open 2025"]
[Site "Bosnjaci"]
[Date "2025.01.03"]
[Round "1.6"]
[White "Kovacevic, Blazimir"]
[Black "Neferanovic, Ivan"]
[Result "1-0"]
[ECO "A36"]
[WhiteElo "2379"]
[BlackElo "1917"]
[Annotator "TA"]
[PlyCount "41"]
[EventDate "2025.01.04"]
[EventType "swiss"]
[EventCountry "CRO"]
[SourceTitle "playchess.com"]
[Source "ChessBase"]
[SourceQuality "1"]
[TimeControl "5400+30"]

{[%evp 16,41,2,5,1,11,32,36,51,33,58,50,65,68,89,120,106,103,102,72,82,49,109,97,189,170,464,462]} 1. c4 {[%emt 0:00:06]} Nf6 {[%emt 0:00:01]} 2. Nc3 {[%emt 0:00:10]} g6 {[%emt 0:00:02]} 3. g3 {[%emt 0:00:31]} Bg7 {[%emt 0:00:02]} 4. Bg2 {[%emt 0:00:05]} O-O {[%emt 0:00:12]} 5. e4 {[%emt 0:00:13]} d6 {[%emt 0:00:02]} 6. Nge2 {[%emt 0:00:07]} c5 {[%emt 0:00:28]} 7. O-O {[%emt 0:00:10]} Nc6 {[%emt 0:00:07]} 8. d3 {[%emt 0:00:19]} a6 {[%emt 0:00:36]} 9. a4 {[%emt 0:00:56]} e6 {[%emt 0:02:02]} 10. h3 {[%emt 0:01:00]} Ne7 {[%emt 0:00:45]} 11. Be3 {[%emt 0:02:16]} Qc7 {[%emt 0:01:14]} 12. Rb1 {[%emt 0:03:37]} Rd8 {[%emt 0:01:48]} 13. b4 {[%emt 0:03:11]} cxb4 {[%emt 0:01:19]} 14. Rxb4 {[%emt 0:00:09]} Qa5 {[%emt 0:01:17]} 15. Rb1 {[%emt 0:09:24]} Nd7 {[%emt 0:04:23] Prevents Bb6} 16. Qc2 {[%emt 0:00:07]} Rb8 {[%emt 0:02:04]} 17. Rfc1 {[%emt 0:02:10] White is more active.} Nc6 {[%emt 0:03:48]} 18. f4 {[%emt 0:04:43]} Nb4 {[%emt 0:02:35]} ({Black should try} 18... e5 $14) 19. Qd2 $16 {[%emt 0:02:17]} Nc5 {[%emt 0:01:01] [#]} (19... Nc6 $16) 20. d4 $1 $18 {[%emt 0:03:06] Strongly threatening Na2.} Nxa4 $2 {[%emt 0:00:50]} (20... b5) 21. Nxa4 {[%emt 0:00:32]} 1-0